[Event "Croatian 1A League 2022"]
[Site "Porec"]
[Date "2022.10.01"]
[Round "8.13"]
[White "Cheparinov, Ivan"]
[Black "Fedorchuk, Sergey A."]
[Result "0-1"]
[ECO "C65"]
[WhiteElo "2686"]
[BlackElo "2617"]
[Annotator "TA"]
[PlyCount "80"]
[EventDate "2022.09.24"]
[EventType "team-tourn"]
[EventCountry "CRO"]
[SourceTitle "playchess.com"]
[Source "ChessBase"]
[SourceQuality "1"]
[TimeControl "40/5400+30:1800+30"]

{[%evp 9,80,5,14,10,12,9,18,21,36,19,35,31,30,23,26,30,52,38,35,27,34,33,37,0,44,48,69,46,78,66,67,78,94,65,68,68,70,75,72,62,90,45,51,16,17,17,18,0,0,0,0,0,31,0,61,-323,-343,-324,-320,-361,-354,-344,-374,-370,-355,-331,-358,-346,-331,-437,-433,-429,-384]} 1. e4 {[%emt 0:00:12]} e5 {[%emt 0:00:24]} 2. Nf3 {[%emt 0:00:06]} Nc6 {[%emt 0:00:09]} 3. Bb5 {[%emt 0:00:16]} Nf6 {[%emt 0:00:13]} 4. d3 {[%emt 0:00:06]} Bc5 {[%emt 0:00:47]} 5. c3 {[%emt 0:00:10]} O-O {[%emt 0:02:23]} 6. O-O {[%emt 0:00:11] C65: Ruy Lopez: Berlin Defence (3...Nf6), unusual lines and 4 0-0 Bc5.} Re8 {[%emt 0:07:15]} 7. Bg5 {[%emt 0:01:18]} h6 {[%emt 0:04:00] 7...a6 gains popularity.} 8. Bh4 {[%emt 0:01:33] The position is equal.} a6 {[%emt 0:00:42]} 9. Ba4 {[%emt 0:04:33]} (9. Bxc6 $5 dxc6 10. h3 $11) 9... Bf8 $5 {[%emt 0:02:50][%mdl 4] Leaves trodden paths.} 10. Nbd2 {[%emt 0:01:04][%cal Bb1d2,Bd2f1,Bf1e3][%mdl 32]} d6 {[%emt 0:00:08]} 11. Re1 {[%emt 0:00:46] [#]} b5 $146 {[%emt 0:02:02]} ({Predecessor:} 11... Bd7 12. h3 Be7 13. d4 b5 14. Bb3 g5 15. Bg3 Bf8 16. Bc2 Bg7 17. Nf1 a5 {1-0 (87) Tan,Z (2525)-Ju,W (2560) Xian 2021}) 12. Bc2 {[%emt 0:04:18]} Bb7 {[%emt 0:01:52]} 13. Nf1 {[%emt 0:02:49]} Nb8 {[%emt 0:00:55]} 14. Ne3 {[%emt 0:00:22]} Nbd7 {[%emt 0:00:15]} 15. a4 {[%emt 0:07:47][%cal Ba2a4,Ba4a5][%mdl 32]} Qc8 {[%emt 0:08:40]} 16. b4 {[%emt 0:08:40]} g6 {[%emt 0:10:29]} 17. Bb3 {[%emt 0:05:10]} Bg7 {[%emt 0:00:28]} 18. Qc2 {[%emt 0:12:43]} Nb6 {[%emt 0:06:29]} 19. Qa2 {[%emt 0:05:17]} Rf8 {[%emt 0:02:16]} 20. a5 {[%emt 0:02:54] [#] And now Bxf6 would win.} Nbd7 {[%emt 0:00:13]} 21. c4 {[%emt 0:00:10]} (21. Bxf6 {seems wilder.} Bxf6 22. Ng4 Kg7 23. d4) 21... c5 {[%emt 0:01:23]} 22. cxb5 {[%emt 0:03:34]} axb5 {[%emt 0:00:05]} 23. Bxf6 {[%emt 0:03:05]} Bxf6 {[%emt 0:00:40]} 24. Rec1 {[%emt 0:01:01]} Qb8 {[%emt 0:02:40]} 25. Bd5 {[%emt 0:07:31]} cxb4 {[%emt 0:04:12]} 26. Bxb7 {[%emt 0:03:57]} Qxb7 {[%emt 0:00:04]} 27. Nd5 {[%emt 0:00:17] Black must now prevent Rc7.} Rfc8 {[%emt 0:01:07] Against Rc7} 28. Rxc8+ {[%emt 0:02:15]} Qxc8 {[%emt 0:00:23]} 29. Qb1 {[%emt 0:04:07]} Bd8 {[%emt 0:07:19]} 30. Qxb4 {[%emt 0:00:17]} Qa6 {[%emt 0:00:27][%cal Rd8a5]} 31. h4 {[%emt 0:07:11][%cal Oh4h5]} Bxa5 {[%emt 0:06:00]} (31... Nf6 $11) 32. Rxa5 $4 {[%emt 0:00:51][%mdl 8192] This move loses the game for White.} Qxa5 $19 {[%emt 0:00:04]} 33. Qxd6 {[%emt 0:00:05] [#]} Ra7 {[%emt 0:00:13]} 34. h5 {[%emt 0:01:58]} Qa3 {[%emt 0:01:44]} 35. Qc6 {[%emt 0:03:10]} Qc5 {[%emt 0:01:00]} ({Don't play} 35... Qxd3 36. hxg6 Qa3 37. gxf7+ Kg7 38. Qe6 $18) ({Inferior is} 35... gxh5 36. Qxh6 Qf8 37. Qxh5 Ra1+ 38. Kh2 $11) 36. Nxe5 {[%emt 0:01:05]} Ra1+ {[%emt 0:07:27]} 37. Kh2 {[%emt 0:00:02]} Qxc6 {[%emt 0:00:35] Really sharp!} 38. Nxc6 {[%emt 0:00:03] Pair of Knights!} gxh5 {[%emt 0:00:14]} 39. d4 {[%emt 0:01:52]} Ra4 {[%emt 0:01:33]} 40. Kg3 {[%emt 0:00:00]} Rc4 {[%emt 0:00:00] Weighted Error Value: White=0.29 (precise) /Black=0.11 (very precise)} 0-1

[Event "Croatian 1A League 2022"]
[Site "Porec"]
[Date "2022.10.01"]
[Round "8.14"]
[White "Bernadskiy, Vitaliy"]
[Black "Hracek, Zbynek"]
[Result "1-0"]
[ECO "C58"]
[WhiteElo "2558"]
[BlackElo "2556"]
[Annotator "TA"]
[PlyCount "75"]
[EventDate "2022.09.24"]
[EventType "team-tourn"]
[EventCountry "CRO"]
[SourceTitle "playchess.com"]
[Source "ChessBase"]
[SourceQuality "1"]
[TimeControl "40/5400+30:1800+30"]

{[%evp 14,75,19,18,34,69,50,7,62,64,61,66,65,54,159,171,156,165,172,155,154,161,152,141,158,164,162,167,165,152,197,197,197,197,197,191,190,191,189,201,199,202,227,217,227,216,216,191,218,187,187,187,190,193,214,197,200,175,292,295,343,313,450,431]} 1. e4 {[%emt 0:00:03]} e5 {[%emt 0:00:04]} 2. Nf3 {[%emt 0:00:06]} Nc6 {[%emt 0:00:04]} 3. Bc4 {[%emt 0:00:25]} Nf6 {[%emt 0:00:15]} 4. Ng5 {[%emt 0:02:16]} d5 {[%emt 0:00:16]} 5. exd5 {[%emt 0:00:04]} Na5 {[%emt 0:00:08]} 6. Bb5+ {[%emt 0:00:05]} Bd7 {[%emt 0:00:02]} 7. Qe2 {[%emt 0:01:38]} Be7 {[%emt 0:00:13]} 8. Nc3 {[%emt 0:12:32]} O-O {[%emt 0:03:04][%cal Of6d5] C58: Two Knights: 4 Ng5 d5 5 exd5 Na5 sidelines.} 9. Bxd7 {[%emt 0:06:08]} Qxd7 {[%emt 0:00:06]} 10. Nf3 {[%emt 0:04:55]} ({Much worse is} 10. Qxe5 Bd6 11. Qd4 Rfe8+ 12. Kf1 Be5 $15) 10... e4 {[%emt 0:27:25]} (10... Bc5 $11) 11. Nxe4 $14 {[%emt 0:17:26]} Nxd5 {[%emt 0:00:15] [#] Strongly threatening ...Nf4.} 12. O-O {[%emt 0:06:07] [#]} c5 $146 {[%emt 0:13:38]} ({Predecessor:} 12... Rfe8 13. d3 Rad8 14. Bd2 Bb4 15. a3 Bxd2 16. Qxd2 Nc6 17. Rfe1 b6 18. Ng3 Nf6 19. Rxe8+ Rxe8 {1-0 (62) Beznosikov,V (2323)-Schouten,N (2179) Porto 2014}) 13. d4 {[%emt 0:03:36]} c4 {[%emt 0:05:43] White leaves nothing to chance now.} (13... cxd4 $14 14. Nxd4 Nc6) 14. Bd2 $16 {[%emt 0:01:45]} Bb4 {[%emt 0:00:34]} 15. Ne5 {[%emt 0:03:38][%csl LRc4,LRd7]} Qc7 {[%emt 0:03:06]} 16. Bxb4 {[%emt 0:00:48]} Nxb4 {[%emt 0:00:02]} 17. c3 {[%emt 0:05:09]} Nd5 {[%emt 0:00:16]} 18. Nd2 {[%emt 0:05:11][%cal Re5c4] White is more active.} Rac8 {[%emt 0:09:51]} 19. Qf3 {[%emt 0:02:52]} Rcd8 {[%emt 0:00:41]} 20. Rfe1 {[%emt 0:01:53]} b5 {[%emt 0:00:22]} 21. g3 {[%emt 0:01:42]} Nc6 {[%emt 0:03:07]} 22. a4 {[%emt 0:02:06]} a6 {[%emt 0:00:52]} 23. axb5 {[%emt 0:00:33]} axb5 {[%emt 0:00:02]} 24. Nxc6 {[%emt 0:00:26]} Qxc6 {[%emt 0:00:02]} 25. Nf1 {[%emt 0:00:25]} g6 {[%emt 0:07:40]} 26. Ne3 {[%emt 0:00:52]} Qf6 {[%emt 0:01:43]} 27. Kg2 {[%emt 0:02:15]} Qxf3+ {[%emt 0:00:05]} 28. Kxf3 {[%emt 0:00:03]} Nf6 {[%emt 0:00:11]} 29. Ra5 {[%emt 0:01:32]} Rb8 {[%emt 0:00:04]} 30. Ng4 {[%emt 0:00:33]} Rb6 {[%emt 0:02:01]} 31. Nxf6+ {[%emt 0:05:08]} Rxf6+ $18 {[%emt 0:00:02][%mdl 4096] Endgame KRR-KRR} 32. Kg2 {[%emt 0:00:04]} Rb8 {[%emt 0:00:12]} 33. Re5 {[%emt 0:00:09]} Rfb6 {[%emt 0:00:42]} 34. Re7 {[%emt 0:00:32]} Rf6 {[%emt 0:04:33]} 35. Raa7 {[%emt 0:00:19]} Rd8 {[%emt 0:00:11]} (35... b4 $142) 36. Rab7 {[%emt 0:00:39]} Rf5 {[%emt 0:00:58]} 37. g4 {[%emt 0:00:19]} Rg5 {[%emt 0:00:16]} (37... Rf6 {was called for.} 38. Rxb5 h6) 38. h3 {[%emt 0:00:18] Weighted Error Value: White=0.07 (flawless) /Black=0.23 (precise)} 1-0

[Event "Croatian 1A League 2022"]
[Site "Porec"]
[Date "2022.10.01"]
[Round "8.15"]
[White "Leventic, Ivan"]
[Black "Lalic, Bogdan"]
[Result "1/2-1/2"]
[ECO "B40"]
[WhiteElo "2384"]
[BlackElo "2393"]
[Annotator "TA"]
[PlyCount "35"]
[EventDate "2022.09.24"]
[EventType "team-tourn"]
[EventCountry "CRO"]
[SourceTitle "playchess.com"]
[Source "ChessBase"]
[SourceQuality "1"]
[TimeControl "40/5400+30:1800+30"]

{[%evp 13,22,47,36,42,46,24,38,37,37,19,39]} 1. e4 {[%emt 0:00:43]} c5 {[%emt 0:00:43]} 2. Nf3 {[%emt 0:00:11]} e6 {[%emt 0:00:08]} 3. c4 {[%emt 0:00:15]} Nc6 {[%emt 0:00:13]} 4. Nc3 {[%emt 0:00:12]} Nge7 {[%emt 0:00:23]} 5. d4 {[%emt 0:00:23]} cxd4 {[%emt 0:00:09]} 6. Nxd4 {[%emt 0:00:09]} Nxd4 {[%emt 0:00:09]} 7. Qxd4 {[%emt 0:00:12]} Nc6 {[%emt 0:00:13]} 8. Qe3 {[%emt 0:00:15] is now debated instead of 8.Qd1. B40: Sicilian: 2...e6, Unusual lines.} b6 {[%emt 0:00:21]} 9. Bd3 {[%emt 0:00:15]} Bc5 {[%emt 0:00:21]} 10. Qg3 {[%emt 0:00:12]} Qf6 {[%emt 0:00:14]} 11. O-O {[%emt 0:00:15]} Qg6 {[%emt 0:00:12] [#] White took control after the opening.  Weighted Error Value: White=0.10 (very precise) /Black=0.04 (flawless)} {Predecessor:} 12. Bf4 $146 Qxg3 13. Bxg3 f6 14. Rfd1 Bb7 15. Rac1 Ne5 16. Kf1 h5 17. h3 Bc6 18. Ke2 {0-1 (48) Chernyshov,K (2578)-Rublevsky,S (2688) Irkutsk 2010} 1/2-1/2

[Event "Croatian 1A League 2022"]
[Site "Porec"]
[Date "2022.10.01"]
[Round "8.16"]
[White "Zaja, Ivan"]
[Black "Zivkovic, Vjekoslav"]
[Result "1/2-1/2"]
[ECO "D36"]
[WhiteElo "2417"]
[BlackElo "2364"]
[Annotator "TA"]
[PlyCount "51"]
[EventDate "2022.09.24"]
[EventType "team-tourn"]
[EventCountry "CRO"]
[SourceTitle "playchess.com"]
[Source "ChessBase"]
[SourceQuality "1"]
[TimeControl "40/5400+30:1800+30"]

{[%evp 22,51,0,10,8,0,0,0,13,-8,0,-20,2,-22,-25,-41,-39,-45,-22,-61,-43,-85,-30,-31,0,-84,-4,-82,-75,-105,-91,-106]} 1. d4 {[%emt 0:00:26]} Nf6 {[%emt 0:00:10]} 2. c4 {[%emt 0:00:29]} e6 {[%emt 0:00:04]} 3. Nc3 {[%emt 0:00:50]} d5 {[%emt 0:00:05]} 4. cxd5 {[%emt 0:00:23]} exd5 {[%emt 0:00:09]} 5. Bg5 {[%emt 0:00:11]} Be7 {[%emt 0:00:21]} 6. e3 {[%emt 0:00:25]} Nbd7 {[%emt 0:02:11][%cal Bb8d7,Bd7f8,Bf8e6][%mdl 32]} 7. Bd3 {[%emt 0:00:22]} O-O {[%emt 0:01:51]} 8. Qc2 {[%emt 0:01:26]} c6 {[%emt 0:00:11]} 9. Nge2 {[%emt 0:00:08]} Re8 {[%emt 0:00:19]} 10. O-O {[%emt 0:00:38]} Nf8 {[%emt 0:00:14]} 11. f3 {[%emt 0:00:15]} g6 $1 {[%emt 0:03:10][%mdl 4] is recently more successful than 11...Be6.} 12. Bh4 {[%emt 0:04:18][%cal Bg5h4,Bh4f2,Bf2g3,Bg3e5][%mdl 32]} Ne6 {[%emt 0:09:04] D36: Queen's Gambit Declined: Exchange Variation: Main line (5 Bg5 c6 6 Qc2).} 13. Bf2 {[%emt 0:01:57]} Nh5 {[%emt 0:10:18]} 14. Kh1 {[%emt 0:04:39] [#]} Rf8 $146 {[%emt 0:17:16] The position is equal.} ({Predecessor:} 14... b6 15. Rad1 Bb7 16. Qb1 a5 17. a3 Bd6 18. Rfe1 Qc7 19. Bg1 Qd8 20. Bf2 Qc7 21. Bg1 Qd8 {½-½ (21) Yakovich,Y (2560)-Mukhametov,E (2515) Kazan 1995}) 15. g4 {[%emt 0:18:21]} Nhg7 {[%emt 0:00:43]} 16. Bg3 {[%emt 0:06:07]} b6 {[%emt 0:09:14]} 17. Rg1 {[%emt 0:12:02]} Bb7 {[%emt 0:06:00]} 18. Qd2 {[%emt 0:05:50]} c5 {[%emt 0:03:03]} 19. Bc2 {[%emt 0:02:16]} f5 {[%emt 0:11:52]} 20. Be5 {[%emt 0:02:02]} fxg4 {[%emt 0:00:08]} 21. f4 {[%emt 0:03:13]} cxd4 {[%emt 0:00:55]} (21... Qd7 $17) 22. exd4 $11 {[%emt 0:01:26]} Qd7 {[%emt 0:10:17]} 23. h3 {[%emt 0:05:58]} (23. Rxg4 $11 Bd6 24. Rag1) 23... Bf6 {[%emt 0:03:38]} ({Black should try} 23... Bd6 $17 {Strongly threatening ...Bxe5.} 24. Rxg4 (24. hxg4 Bxe5 25. fxe5 Qe7 $17) 24... Bxe5 25. fxe5 Rf2) 24. Rxg4 {[%emt 0:02:26]} (24. Bxf6 $1 $11 {keeps the balance.} Rxf6 25. hxg4) 24... Bxe5 $17 {[%emt 0:00:02]} 25. fxe5 {[%emt 0:00:02]} Rf3 {[%emt 0:04:31] White must now prevent ...Raf8.} 26. Ng1 {[%emt 0:02:53] Weighted Error Value: White=0.34/Black=0.21 (precise)} 1/2-1/2

[Event "Croatian 1A League 2022"]
[Site "Porec"]
[Date "2022.10.01"]
[Round "8.17"]
[White "Medak, Bojan"]
[Black "Kovacevic, Blazimir"]
[Result "1/2-1/2"]
[ECO "E18"]
[WhiteElo "2353"]
[BlackElo "2405"]
[Annotator "TA"]
[PlyCount "28"]
[EventDate "2022.09.24"]
[EventType "team-tourn"]
[EventCountry "CRO"]
[SourceTitle "playchess.com"]
[Source "ChessBase"]
[SourceQuality "1"]
[TimeControl "40/5400+30:1800+30"]

{[%evp 18,28,42,29,40,28,33,12,16,12,12,9,6]} 1. d4 {[%emt 0:00:09]} d5 {[%emt 0:00:10]} 2. Nf3 {[%emt 0:00:37]} Nf6 {[%emt 0:00:24]} 3. c4 {[%emt 0:00:32]} e6 {[%emt 0:00:42]} 4. g3 {[%emt 0:00:51]} Be7 {[%emt 0:00:35]} 5. Bg2 {[%emt 0:00:34]} O-O {[%emt 0:00:14]} 6. Qc2 {[%emt 0:00:59]} b6 {[%emt 0:02:57]} 7. O-O {[%emt 0:01:39]} Bb7 {[%emt 0:00:26]} 8. cxd5 {[%emt 0:02:02]} exd5 {[%emt 0:01:21]} 9. Nc3 {[%emt 0:00:31]} Na6 {[%emt 0:01:49][%cal Bb8a6,Ba6c7,Bc7d5][%mdl 32] is now debated instead of 9...Nbd7.} 10. Rd1 {[%emt 0:02:55]} c6 {[%emt 0:02:21] E18: Queen's Indian: Old Main Line (4 g3 Bb7 5 Bg2 Be7 6 0-0 0-0 7 Nc3).} 11. a3 {[%emt 0:00:43]} Nc7 {[%emt 0:00:49] [#]} 12. e4 $146 {[%emt 0:05:37]} ({Predecessor:} 12. Ne5 Ne6 13. b3 Rc8 14. Bb2 Nd7 15. e4 Nxe5 16. exd5 Nxd4 17. Rxd4 cxd5 18. Qf5 {1-0 (27) Kuchynka,L (2287)-Bazant,P (2392) Czech Republic 2011}) 12... Nxe4 {[%emt 0:02:15] The position is equal.} 13. Nxe4 {[%emt 0:00:07]} dxe4 {[%emt 0:00:03]} 14. Qxe4 {[%emt 0:00:13]} Nd5 {[%emt 0:00:10] Black did not feel at home in the position after the opening.  Weighted Error Value: White=0.09 (flawless) /Black=0.03 (flawless)} 1/2-1/2

[Event "Croatian 1A League 2022"]
[Site "Porec"]
[Date "2022.10.01"]
[Round "8.18"]
[White "Sale, Srdjan"]
[Black "Mrkonjic, Nenad"]
[Result "1/2-1/2"]
[ECO "A11"]
[WhiteElo "2366"]
[BlackElo "2347"]
[Annotator "TA"]
[PlyCount "43"]
[EventDate "2022.09.24"]
[EventType "team-tourn"]
[EventCountry "CRO"]
[SourceTitle "playchess.com"]
[Source "ChessBase"]
[SourceQuality "1"]
[TimeControl "40/5400+30:1800+30"]

{[%evp 18,43,23,2,20,0,22,22,33,40,41,41,35,27,53,77,56,44,41,0,0,0,0,0,4,17,10,-11]} 1. Nf3 {[%emt 0:00:04]} Nf6 {[%emt 0:00:44]} 2. g3 {[%emt 0:00:06]} d5 {[%emt 0:01:41]} 3. Bg2 {[%emt 0:00:05]} c6 {[%emt 0:00:23]} 4. O-O {[%emt 0:00:09]} Bf5 {[%emt 0:00:14]} 5. d3 {[%emt 0:00:45]} h6 {[%emt 0:03:12]} 6. c4 {[%emt 0:01:24]} dxc4 {[%emt 0:07:02]} 7. dxc4 {[%emt 0:00:44]} Qxd1 {[%emt 0:00:14]} 8. Rxd1 {[%emt 0:00:05]} e6 {[%emt 0:00:22] was the old line (8...Bc2).} 9. Nc3 {[%emt 0:01:13]} Nbd7 {[%emt 0:04:17]} 10. Be3 {[%emt 0:01:19]} Be7 {[%emt 0:02:43] A11: English Opening: 1...c6.} 11. Rac1 {[%emt 0:03:57]} O-O {[%emt 0:02:20]} 12. Nd4 {[%emt 0:01:01]} Bg6 {[%emt 0:04:30]} 13. Nb3 {[%emt 0:03:42]} a5 {[%emt 0:00:41]} 14. Na4 $1 {[%emt 0:08:25]} Rfd8 {[%emt 0:05:38] [#]} 15. a3 $146 {[%emt 0:15:57]} ({Predecessor:} 15. h3 Be4 16. Bxe4 Nxe4 17. Rxd7 Rxd7 18. Nb6 Rdd8 19. Nxa8 Rxa8 20. a4 Bg5 21. Bxg5 hxg5 {1-0 (80) Hausrath,D (2493)-Akopian,G (2261) Kallithea 2008}) 15... Be4 {[%emt 0:05:47]} 16. Bxe4 {[%emt 0:11:09]} Nxe4 {[%emt 0:00:14]} 17. f3 {[%emt 0:01:00]} Nef6 {[%emt 0:00:17]} 18. Nb6 {[%emt 0:02:31]} Nxb6 {[%emt 0:14:40] The position is equal.} 19. Bxb6 {[%emt 0:00:11]} Rxd1+ {[%emt 0:00:03]} 20. Rxd1 {[%emt 0:00:11]} a4 {[%emt 0:00:04]} 21. Nc5 {[%emt 0:07:15]} Kf8 {[%emt 0:00:19]} 22. Nd3 {[%emt 0:07:03] Weighted Error Value: White=0.09 (flawless) /Black=0.06 (flawless)} ({Don't go for} 22. Nxb7 $2 Rb8 23. Nc5 Rxb6 $19) 1/2-1/2

[Event "Croatian 1A League 2022"]
[Site "Porec"]
[Date "2022.10.01"]
[Round "8.19"]
[White "Vavulin, Maxim"]
[Black "Kaczur, Florian"]
[Result "1/2-1/2"]
[ECO "C88"]
[WhiteElo "2550"]
[BlackElo "2483"]
[Annotator "TA"]
[PlyCount "86"]
[EventDate "2022.09.24"]
[EventType "team-tourn"]
[EventCountry "CRO"]
[SourceTitle "playchess.com"]
[Source "ChessBase"]
[SourceQuality "1"]
[TimeControl "40/5400+30:1800+30"]

{[%evp 19,86,6,12,12,26,22,31,30,31,27,38,31,40,5,52,32,31,19,6,20,10,4,6,0,6,0,0,-4,0,0,0,-23,-14,-33,-22,-11,-28,-48,0,0,0,0,8,-93,-93,-93,-90,-83,68,76,76,58,61,71,57,68,55,0,0,-6,-12,-47,0,0,0,0,0,0,0]} 1. e4 {[%emt 0:00:03]} e5 {[%emt 0:00:07]} 2. Nf3 {[%emt 0:00:06]} Nc6 {[%emt 0:00:49]} 3. Bb5 {[%emt 0:00:17]} a6 {[%emt 0:00:06]} 4. Ba4 {[%emt 0:00:08]} Nf6 {[%emt 0:00:10]} 5. O-O {[%emt 0:00:09]} Be7 {[%emt 0:01:29]} 6. Re1 {[%emt 0:00:20]} b5 {[%emt 0:00:46]} 7. Bb3 {[%emt 0:00:01]} O-O {[%emt 0:01:26]} 8. a4 {[%emt 0:03:33]} b4 {[%emt 0:03:49]} 9. a5 {[%emt 0:02:39]} d6 {[%emt 0:00:23]} 10. d3 {[%emt 0:03:20]} Be6 {[%emt 0:02:12]} 11. Nbd2 {[%emt 0:02:29] C88: Closed Ruy Lopez: Anti-Marshall Systems.} h6 {[%emt 0:08:50] 11...Bxb3 gains popularity.} 12. Nc4 {[%emt 0:02:52]} Nd7 {[%emt 0:06:47]} 13. Be3 {[%emt 0:01:22] White is slightly better.} Bf6 {[%emt 0:03:30]} 14. c3 {[%emt 0:05:50]} bxc3 {[%emt 0:14:23]} 15. bxc3 {[%emt 0:00:02]} Rb8 {[%emt 0:01:33]} 16. h3 {[%emt 0:01:42] [#]} d5 $146 {[%emt 0:06:38]} (16... Ne7 $11 {was preferrable.}) ({Predecessor:} 16... Ne7 17. Qc2 d5 18. Ncd2 c6 19. Ba2 Ng6 20. d4 Kh8 21. dxe5 Ndxe5 22. Nd4 Bg5 23. Nxe6 fxe6 24. exd5 Bxe3 25. Rxe3 {1-0 (41) Spraggett,K (2585)-Shchekachev,A (2526) Metz 2005}) 17. Ba4 {[%emt 0:13:28]} dxe4 $1 {[%emt 0:04:37]} 18. dxe4 {[%emt 0:02:49]} (18. Bxc6 exf3 19. g4 (19. Qxf3 e4 $17) 19... e4 $15) 18... Ne7 {[%emt 0:00:23]} 19. Qe2 {[%emt 0:17:33]} Ng6 {[%emt 0:01:49]} 20. Ncd2 {[%emt 0:03:07]} Qc8 {[%emt 0:10:51]} 21. Bc2 {[%emt 0:08:06]} Qb7 {[%emt 0:03:05]} 22. Kh2 {[%emt 0:11:05]} Be7 {[%emt 0:02:18][%cal Bf6e7,Be7c5,Bc5f2,Bf2g3,Bg3f4][%mdl 32]} 23. Bd3 {[%emt 0:11:31]} Nc5 {[%emt 0:01:50]} 24. Bxc5 {[%emt 0:05:19]} Bxc5 {[%emt 0:00:03]} 25. Bxa6 {[%emt 0:00:20]} Qa7 {[%emt 0:00:24]} 26. Bc4 $1 {[%emt 0:01:10]} Nf4 $36 {[%emt 0:06:50][%mdl 2048] Black has the initiative.} ({Don't play} 26... Bxf2 27. Rf1 Bxc4 28. Nxc4 $14) 27. Qf1 {[%emt 0:00:24]} Bxf2 {[%emt 0:00:33] [#] Threatens to win with ...Nh5. A strong pair of Bishops.} 28. Reb1 $1 {[%emt 0:01:39]} Nh5 {[%emt 0:04:01]} (28... Rbe8 $15 {is more appropriate.} 29. Bxe6 Rxe6) 29. Rxb8 $1 $11 {[%emt 0:02:16] The board is on fire.} Bg3+ {[%emt 0:04:12]} 30. Kh1 {[%emt 0:00:00][%cal Bh2h1,Bh1g1,Bg1f2][%mdl 32] aiming for Rxf8+.} Qxb8 {[%emt 0:01:10]} 31. Bxe6 {[%emt 0:00:34]} (31. Qb1 $11 {keeps the balance.}) 31... Bf4 $17 {[%emt 0:00:30]} 32. Qf2 {[%emt 0:01:33] [#] Black must now prevent Bb3.} Ng3+ {[%emt 0:00:15]} 33. Kg1 {[%emt 0:00:06] Bb3 is the strong threat.} Qb2 {[%emt 0:01:02]} (33... fxe6 $17 34. Re1 Qb5) 34. Re1 $1 $14 {[%emt 0:00:46] Strongly threatening Nf1.} ({Weaker is} 34. Rb1 Qxc3 35. Nc4 fxe6 $17) 34... fxe6 {[%emt 0:02:29]} 35. Nf1 {[%emt 0:00:38]} Qxf2+ {[%emt 0:00:31]} 36. Kxf2 {[%emt 0:00:01]} Nxf1 {[%emt 0:00:12]} 37. Rxf1 {[%emt 0:00:36][%mdl 4096] Endgame KRB-KRN} Bd2 $1 {[%emt 0:00:10]} 38. a6 {[%emt 0:01:03]} ({Better is} 38. Ra1 $1 $14) 38... Bxc3 $11 {[%emt 0:00:13]} 39. Rb1 {[%emt 0:00:30] And now Rb7 would win.} Ra8 {[%emt 0:00:55]} 40. Rb7 {[%emt 0:00:00]} Ba5 {[%emt 0:00:00]} (40... Rxa6 $15 41. Rxc7 Bd4+ 42. Kg3 Bb2) 41. Nxe5 {[%emt 0:04:59] The position is equal.} Rxa6 {[%emt 0:06:34]} 42. Nc4 $1 {[%emt 0:02:40]} Bb6+ {[%emt 0:04:03]} 43. Kf3 {[%emt 0:00:24]} Ra4 {[%emt 0:07:51] Weighted Error Value: White=0.11 (very precise) /Black=0.11 (very precise)} 1/2-1/2